Cogmind - Beta 9.6 @@@ ROGUE MODE // 2020.04.19 @ 16:07:50 Player: 3.14 Result: Self-destructed Performance ------------- Evolutions (5) 2500 Regions Visited (13) 2600 Robots Destroyed (78) 390 Value Destroyed (2816) 2816 Prototype IDs (18) 360 Alien Tech Used (0) 0 Bonus (682) 682 TOTAL SCORE: 9348 Bonus ------- High Alert Combat Kills 40 Follower Combat Kills 342 Met Data Miner 300 Cogmind --------- Core Integrity 617/1000 Matter 280/300 Energy 150/150 System Corruption 3% Temperature Cool (10) Movement Walking (120) Location -5/Factory Parts ------- > --- POWER (1) -------- Light Angular Momentum Engine > --- PROPULSION (5) --- Carbon-fiber Leg Flexi-carbon Leg Flexi-carbon Leg Enhanced Armored Leg > --- UTILITY (9) ------ Large Storage Unit Large Storage Unit Advanced Visual Processing Unit Improved Signal Interpreter Core Analyzer Microactuators Improved Utility Shielding Advanced System Shield > --- WEAPON (2) ------- Makeshift Axe Plasma Sword > --- INVENTORY (16) --- Light Angular Momentum Engine Carbon-fiber Leg Carbon-fiber Leg Carbon-fiber Leg Flexi-carbon Leg Flexi-carbon Leg Improved Energy Well (600) Advanced Sensor Array Improved Weapon Shielding EM Shield Improved Component Analysis Suite KE Penetrator EMP Blaster Rocket Launcher Impact Mace Peak State ------------ > --- POWER ------------ Light Angular Momentum Engine > --- PROPULSION ------- Carbon-fiber Leg Carbon-fiber Leg Flexi-carbon Leg Enhanced Flexi-carbon Leg Enhanced Armored Leg > --- UTILITY ---------- Large Storage Unit Large Storage Unit Advanced Visual Processing Unit Improved Signal Interpreter Core Analyzer Improved Heavy Armor Plating Advanced System Shield Improved Component Analysis Suite > --- WEAPON ----------- Makeshift Axe Plasma Sword > --- INVENTORY -------- Light Angular Momentum Engine Armored Medium Treads Carbon-fiber Leg Carbon-fiber Leg Improved Energy Well Advanced Sensor Array Precision Energy Filter Precision Energy Filter Microactuators Improved Utility Shielding Improved Medium Armor Plating EM Shield Gauss Rifle EMP Blaster Rocket Launcher Impact Mace [Rating: 81] Favorites ----------- Power Deuterium Engine Engine Deuterium Engine Propulsion Light Treads Treads Light Treads Leg Aluminum Leg Utility Large Storage Unit Device Advanced Sensor Array Storage Large Storage Unit Processor Advanced Visual Processing Unit Hackware Advanced System Shield Protection Improved Medium Armor Plating Weapon Light Assault Rifle Ballistic Gun Light Assault Rifle Launcher EMP Blaster Impact Weapon Impact Mace Slashing Weapon Makeshift Axe Build | -11 -10 -10 -10 -9 -8 -7 -7 -7 -6 -6 -6 -6 -5 ------- Run | Scr Mat Min Exi Min Mat Fac Low Dat Pro Fac Low Low Fac Slots Evolved 10 | . . . . . 4 2 . . . 2 . . 2 Power . | . . . . . . . . . . . . . . Propulsion 3 | . . . . . 2 1 . . . . . . . Utility 7 | . . . . . 2 1 . . . 2 . . 2 Weapon . | . . . . . . . . . . . . . . Parts Attached 128 | 6 2 . 4 6 12 9 1 1 22 9 14 16 26 Power 9 | 1 . . . 1 2 . . . 1 1 1 . 2 Engine 9 | 1 . . . 1 2 . . . 1 1 1 . 2 Core . | . . . . . . . . . . . . . . Reactor . | . . . . . . . . . . . . . . Propulsion 39 | 2 . . . 2 4 2 . . 6 1 6 7 9 Treads 14 | 2 . . . 2 . 2 . . . 1 4 3 . Leg 25 | . . . . . 4 . . . 6 . 2 4 9 Wheel . | . . . . . . . . . . . . . . Hover . | . . . . . . . . . . . . . . Flight . | . . . . . . . . . . . . . . Utility 49 | 1 2 . 4 . 4 3 1 1 7 4 4 6 12 Device 14 | . . . . . . . 1 . 3 . 2 2 6 Storage 10 | 1 2 . 4 . 1 . . . 1 . . . 1 Processor 3 | . . . . . . 2 . . . 1 . . . Hackware 1 | . . . . . . . . . . . . . 1 Protection 21 | . . . . . 3 1 . 1 3 3 2 4 4 Artifact . | . . . . . . . . . . . . . . Weapon 31 | 2 . . . 3 2 4 . . 8 3 3 3 3 Energy Gun . | . . . . . . . . . . . . . . Energy Cannon . | . . . . . . . . . . . . . . Ballistic Gun 12 | 2 . . . 2 2 1 . . 4 . . . 1 Ballistic Cannon . | . . . . . . . . . . . . . . Launcher 9 | . . . . 1 . 1 . . 4 . 1 2 . Special Weapon . | . . . . . . . . . . . . . . Impact Weapon 4 | . . . . . . 2 . . . 2 . . . Slashing Weapon 6 | . . . . . . . . . . 1 2 1 2 Piercing Weapon . | . . . . . . . . . . . . . . Special Melee Weapon . | . . . . . . . . . . . . . . Unidentified Prototypes 3 | . . . . . . 1 . . 2 . . . . Parts Lost 8 | . . . . 1 1 . . . 1 1 . . 4 Power 1 | . . . . 1 . . . . . . . . . Propulsion 3 | . . . . . . . . . . 1 . . 2 Utility 4 | . . . . . 1 . . . 1 . . . 2 Weapon . | . . . . . . . . . . . . . . Highest Loss Streak 2 | . . . . 1 1 . . . 1 1 . . 2 Average Slot Usage (%) 98 | . 97 100 100 99 98 96 100 100 100 96 99 97 95 Engine 7 | . 14 14 14 13 9 7 7 7 7 6 6 6 5 Treads 14 | . 28 28 28 28 . 12 15 15 13 12 15 20 . Leg 18 | . . . . . 36 25 23 23 24 20 16 11 28 Device 3 | . . . . . . . 7 7 4 . 5 4 7 Storage 16 | . 25 28 28 28 18 15 15 15 15 13 13 13 11 Processor 12 | . . . . . . 8 15 15 15 15 20 20 17 Protection 5 | . . . . . 16 10 . . 1 13 6 6 5 Ballistic Gun 8 | . 28 28 28 27 18 5 . . 6 . . . . Impact Weapon 2 | . . . . . . 9 15 15 6 11 . . . Slashing Weapon 4 | . . . . . . . . . . . 11 11 10 Naked Turns . | . . . . . . . . . . . . . . Heaviest Build 67 | 9 37 37 53 37 59 56 48 50 56 65 63 64 67 Greatest Support 98 | 40 40 40 40 40 40 40 30 30 73 73 88 88 98 Greatest Overweight (x) 4 | . . . 1 . 1 1 1 1 3 1 3 4 . Average Overweight (x) . | . . . . . 1 1 1 1 . . . . . Largest Inventory Capacity 18 | 6 16 16 18 16 16 16 16 16 16 16 16 16 16 Average Capacity 15 | 5 14 16 16 16 16 16 16 16 16 16 16 16 16 Most Carried 16 | 4 6 7 9 16 16 16 16 16 16 16 16 16 16 Average Carried 13 | 2 4 6 7 10 14 13 16 16 15 14 15 15 15 Final Capacity 16 | 6 16 16 16 16 16 16 16 16 16 16 16 16 16 Final Carried 16 | 4 6 7 7 16 16 16 16 16 16 16 16 16 15 Class Distribution -------------------- 30% | Scavenger-Assassin 29% | Mutant 28% | Scavenger-Mutant 9% | Assassin Dominant Class ---------------- Mutant | -10/Materials Mutant | -10/Mines Mutant | -10/Exiles Mutant | -9/Mines Mutant | -8/Materials Scavenger-Mutant | -7/Factory Scavenger-Mutant | -7/Lower Caves Assassin | -7/Data Miner Scavenger-Mutant | -6/Proximity Caves Scavenger-Mutant | -6/Factory Scavenger-Assassin | -6/Lower Caves Scavenger-Assassin | -6/Lower Caves Scavenger-Assassin | -5/Factory Resources | -11 -10 -10 -10 -9 -8 -7 -7 -7 -6 -6 -6 -6 -5 ----------- Run | Scr Mat Min Exi Min Mat Fac Low Dat Pro Fac Low Low Fac Matter Collected 2029 | 270 34 . . 147 165 67 . . 481 104 251 256 254 Remotely . | . . . . . . . . . . . . . . Salvage Created 3349 | 80 55 6 . 211 320 112 . . 646 245 196 397 1081 Parts 126 | . 2 . . 18 11 8 . . 29 . 8 20 30 Haulers Intercepted 2 | . 1 . . . . 1 . . . . . . . Recyclers Shooed 4 | . . . . 1 2 . . . . . . . 1 Parts Field Recycled . | . . . . . . . . . . . . . . Retrieved Matter . | . . . . . . . . . . . . . . Parts Self-Destructed 35 | . . . . . . . . . 21 . 9 5 . Prevented 15 | . . . . . . . . . 8 . . 7 . Kills | -11 -10 -10 -10 -9 -8 -7 -7 -7 -6 -6 -6 -6 -5 ------- Run | Scr Mat Min Exi Min Mat Fac Low Dat Pro Fac Low Low Fac Combat Hostiles Destroyed 68 | . . 1 . 10 3 5 . . 18 4 3 9 15 Melee 19 | . . . . . . . . . . . 3 2 14 Guns 13 | . . 1 . 6 3 . . . 2 . . . 1 AOE 27 | . . . . 4 . 5 . . 12 . . 6 . Classes Destroyed 14 | 1 1 1 . 1 2 1 . . 1 1 1 . 4 Worker 2 | . . . . . . . . . . . . . 2 Builder 1 | . . . . . . . . . . . . . 1 Hauler 2 | . 1 . . . . 1 . . . . . . . Recycler 4 | 1 . . . 1 2 . . . . . . . . Watcher 1 | . . . . . . . . . . . . . 1 Swarmer 29 | . . . . 10 . 4 . . 11 . . 4 . Grunt 22 | . . . . . . 1 . . 5 3 . 3 10 Brawler 1 | . . . . . . . . . . . . . 1 Duelist 2 | . . . . . . . . . 1 . . 1 . Sentry 5 | . . . . . 2 . . . 1 . 1 1 . Demolisher 1 | . . 1 . . . . . . . . . . . Hunter 4 | . . . . . 1 . . . . . 1 . 2 Programmer 3 | . . . . . . . . . . 1 . . 2 Mutant 1 | . . . . . . . . . . . 1 . . Best Kill Streak 9 | 1 1 1 . 5 3 6 . . 9 3 1 4 6 Combat Bots Only 9 | . . 1 . 5 1 5 . . 9 3 1 4 4 Max Kills in Single Turn 3 | 1 1 1 . 2 1 2 . . 3 1 1 3 1 Gunslinging . | . . . . . . . . . . . . . . Exploded 3 | . . . . 2 . 2 . . 3 . . 3 . Melee 1 | . . . . . . . . . . . 1 1 1 Uniques/NPCs Destroyed . | . . . . . . . . . . . . . . Combat | -11 -10 -10 -10 -9 -8 -7 -7 -7 -6 -6 -6 -6 -5 -------- Run | Scr Mat Min Exi Min Mat Fac Low Dat Pro Fac Low Low Fac Damage Taken 5428 | . . 336 . 298 431 188 . . 720 616 384 429 2026 Core 863 | . . 67 . 45 30 32 . . 106 76 87 37 383 Absorbed by Shields . | . . . . . . . . . . . . . . Core Remaining (%) 81 | 100 . . . 55 94 . . . 80 . . 76 . Volleys Fired 123 | 7 7 4 . 24 23 7 . . 28 . 2 15 6 Largest 2 | 2 2 2 . 2 2 2 . . 2 . 1 1 1 Hottest 46 | 40 40 40 . 40 43 43 . . 46 . 33 33 33 Shots Fired 199 | 14 14 8 . 46 46 9 . . 39 . 2 15 6 Gun 158 | 14 14 8 . 44 46 4 . . 22 . . . 6 Cannon . | . . . . . . . . . . . . . . Launcher 41 | . . . . 2 . 5 . . 17 . 2 15 . Special . | . . . . . . . . . . . . . . Kinetic 158 | 14 14 8 . 44 46 4 . . 22 . . . 6 Thermal . | . . . . . . . . . . . . . . Explosive 15 | . . . . . . 5 . . 7 . . 3 . Electromagnetic 26 | . . . . 2 . . . . 10 . 2 12 . Robot Hit Streak 14 | 3 3 4 . 7 13 4 . . 9 . . 11 14 Robot Miss Streak 3 | 2 1 3 . 3 3 2 . . 2 . . . 1 Penetration Max . | . . . . . . . . . . . . . . Secondary Targets 1 | . . . . 1 . . . . . . . . . Max Gunslinging Chain 1 | . . . . 1 . . . . . . . . . Shots Hit Robots 227 | 9 10 5 . 29 34 6 . . 22 28 11 11 62 Core Hits 140 | 3 5 6 . 18 13 12 . . 26 4 5 17 31 Critical Hits 6 | . . . . . 1 . . . . . . . 5 Critical Kills 2 | . . . . . 1 . . . . . . . 1 Critical Parts Destroyed 4 | . . . . . . . . . . . . . 4 Melee Attacks 189 | . . . . . . . . . 3 44 35 6 101 Impact 49 | . . . . . . . . . 3 44 2 . . Slashing 140 | . . . . . . . . . . . 33 6 101 Piercing . | . . . . . . . . . . . . . . Sneak Attacks 5 | . . . . . . . . . . . . . 5 Combat Hostiles 2 | . . . . . . . . . . . . . 2 Follow-up Attacks 20 | . . . . . . . . . . 5 3 . 12 Damage Inflicted 7850 | 68 96 47 . 367 302 426 . . 1342 994 433 771 3004 Guns 1037 | 62 96 41 . 217 295 29 . . 156 . . . 141 Cannons . | . . . . . . . . . . . . . . Explosions 2378 | . . . . 138 . 397 . . 1186 . 27 630 . Melee 4404 | . . . . . . . . . . 994 406 141 2863 Ramming 31 | 6 . 6 . 12 7 . . . . . . . . Kinetic 1037 | 62 96 41 . 217 295 29 . . 156 . . . 141 Thermal 72 | . . . . 27 . . . . 45 . . . . Explosive 1312 | . . . . . . 397 . . 604 . . 311 . Electromagnetic 994 | . . . . 111 . . . . 537 . 27 319 . Impact 1041 | . . . . . . . . . . 994 47 . . Slashing 3363 | . . . . . . . . . . . 359 141 2863 Piercing . | . . . . . . . . . . . . . . Highest Corruption 11 | . . . . 1 . . . . 2 10 11 11 3 Average Corruption 7 | . . . . 1 . . . . 1 6 10 11 2 Corruption Purged . | . . . . . . . . . . . . . . Effects 79 | . . . . . . . . . 2 12 37 21 7 Message Errors 17 | . . . . . . . . . . 2 5 8 2 Matter Fused 11 | . . . . . . . . . . 2 7 2 . Heat Flow Errors 8 | . . . . . . . . . . 2 4 1 1 Energy Discharges 6 | . . . . . . . . . . . 2 2 2 Data Loss (minor) 14 | . . . . . . . . . 2 1 7 2 2 Data Loss (major) 4 | . . . . . . . . . . . 4 . . Misfires 1 | . . . . . . . . . . . . 1 . Misdirections 5 | . . . . . . . . . . . 4 1 . Targeting Errors 12 | . . . . . . . . . . 5 4 3 . Weapon Failures 1 | . . . . . . . . . . . . 1 . Overload Shots . | . . . . . . . . . . . . . . Overflow Damage 493 | . . . . 25 . 4 . . 4 190 . . 270 Projectiles . | . . . . . . . . . . . . . . Explosions 33 | . . . . 25 . 4 . . 4 . . . . Melee 460 | . . . . . . . . . . 190 . . 270 Knockbacks 12 | . . . . . . . . . . 12 . . . Impact 10 | . . . . . . . . . . 10 . . . Kinetic . | . . . . . . . . . . . . . . Secondary 2 | . . . . . . . . . . 2 . . . Self-Inflicted Damage 112 | . . . . 21 3 33 . . 36 . . 19 . Shots 8 | . . . . 2 . 1 . . 2 . . 3 . Rammed 6 | 1 . 2 . 2 1 . . . . . . . . Targets Rammed 6 | 1 . 2 . 2 1 . . . . . . . . Kicked . | . . . . . . . . . . . . . . Crushed . | . . . . . . . . . . . . . . Highest Temperature 252 | . . . . 9 22 6 . . 52 252 224 224 145 Average Temperature 60 | . . . . 7 8 4 . . 27 148 95 94 65 Received Heat Transfer 858 | . . . . 18 99 27 . . 96 93 60 132 333 Siege Activations . | . . . . . . . . . . . . . . Robots Corrupted 5 | . . . . . . . . . 4 . . 1 . Combat Hostiles 5 | . . . . . . . . . 4 . . 1 . Parts Fried 14 | . . . . 1 . . . . 6 4 . 3 . Impact Corruptions 12 | . . . . . . . . . . 12 . . . Robots Melted . | . . . . . . . . . . . . . . Combat Hostiles . | . . . . . . . . . . . . . . Parts Melted . | . . . . . . . . . . . . . . Heat Transferred 100 | . . . . 50 . . . . 50 . . . . Parts Sabotaged . | . . . . . . . . . . . . . . Parts Stolen . | . . . . . . . . . . . . . . Parts Stripped . | . . . . . . . . . . . . . . Power Chain Reactions 5 | . . . . 3 . . . . 2 . . . . Missiles Intercepted . | . . . . . . . . . . . . . . Alert | -11 -10 -10 -10 -9 -8 -7 -7 -7 -6 -6 -6 -6 -5 ------- Run | Scr Mat Min Exi Min Mat Fac Low Dat Pro Fac Low Low Fac Peak Influence 346 | 5 52 39 . 170 154 154 . . . 314 . . 346 Average Influence 106 | . 16 27 . 53 88 117 . . . 264 . . 119 Maximum Alert Level 1 | . . . . . . . . . . 1 . . 1 Low Security (%) 76 | 100 100 100 . 100 100 100 . . . 1 . . 66 Level 1 23 | . . . . . . . . . . 98 . . 33 Level 2 . | . . . . . . . . . . . . . . Level 3 . | . . . . . . . . . . . . . . Level 4 . | . . . . . . . . . . . . . . Level 5 . | . . . . . . . . . . . . . . High Security . | . . . . . . . . . . . . . . Max Security . | . . . . . . . . . . . . . . Squads Dispatched 6 | . . . . . 1 1 . . . 2 . . 2 Investigation 1 | . . . . . 1 . . . . . . . . Extermination 2 | . . . . . . . . . . 1 . . 1 Reinforcement 2 | . . . . . . 1 . . . . . . 1 Assault . | . . . . . . . . . . . . . . Garrison 1 | . . . . . . . . . . 1 . . . Intercept . | . . . . . . . . . . . . . . Construction Impeded 1 | . . . . . . . . . . . . . 1 Haulers Reinforced . | . . . . . . . . . . . . . . Stealth | -11 -10 -10 -10 -9 -8 -7 -7 -7 -6 -6 -6 -6 -5 --------- Run | Scr Mat Min Exi Min Mat Fac Low Dat Pro Fac Low Low Fac Distress Signals 2 | . . . . . . . . . . 1 . . 1 Communications Jammed . | . . . . . . . . . . . . . . Distress Signals . | . . . . . . . . . . . . . . Times Spotted 109 | . 3 5 . 12 3 12 . . 18 5 4 12 35 Peak Tracking Total 8 | . 2 4 . 4 1 8 . . 6 4 4 4 8 Tactical Retreats 12 | . . . . 1 . 1 . . 2 2 1 1 4 Traps | -11 -10 -10 -10 -9 -8 -7 -7 -7 -6 -6 -6 -6 -5 ------- Run | Scr Mat Min Exi Min Mat Fac Low Dat Pro Fac Low Low Fac Traps Triggered 2 | . . . . . . . . . . 1 . . 1 Indirectly . | . . . . . . . . . . . . . . Trap Hack Attempts . | . . . . . . . . . . . . . . Triggered . | . . . . . . . . . . . . . . Disarmed . | . . . . . . . . . . . . . . Reprogrammed . | . . . . . . . . . . . . . . Reused . | . . . . . . . . . . . . . . Traps Extracted . | . . . . . . . . . . . . . . Installed . | . . . . . . . . . . . . . . Triggered 3 | . . . . . . . . . . . . 3 . Machines | -11 -10 -10 -10 -9 -8 -7 -7 -7 -6 -6 -6 -6 -5 ---------- Run | Scr Mat Min Exi Min Mat Fac Low Dat Pro Fac Low Low Fac Machines Disabled 3 | . . . . 2 . . . . . . 1 . . Max in Single Turn 2 | . . . . 2 . . . . . . 1 . . Machines Sabotaged . | . . . . . . . . . . . . . . Garrisons Compromised . | . . . . . . . . . . . . . . Overloaded Fab Kills . | . . . . . . . . . . . . . . Fab Network Shutdowns . | . . . . . . . . . . . . . . Hacking | -11 -10 -10 -10 -9 -8 -7 -7 -7 -6 -6 -6 -6 -5 --------- Run | Scr Mat Min Exi Min Mat Fac Low Dat Pro Fac Low Low Fac Machines Accessed 15 | . 2 . 1 . 4 . . 3 . 2 . . 3 Terminals 8 | . 2 . . . 4 . . . . 1 . . 1 Fabricators 3 | . . . . . . . . . . 1 . . 2 Repair Stations . | . . . . . . . . . . . . . . Recycling Units . | . . . . . . . . . . . . . . Scanalyzers . | . . . . . . . . . . . . . . Garrison Access . | . . . . . . . . . . . . . . Total Hacks 65 | . 7 . 1 . 19 . . 26 . 7 . . 5 Successful 39 | . 5 . 1 . 5 . . 26 . 2 . . . Failed 25 | . 2 . . . 13 . . . . 5 . . 5 Catastrophic 3 | . . . . . 1 . . . . . . . 2 Database Lockouts 1 | . . . . . 1 . . . . . . . . Manual 29 | . 8 . . . 19 . . . . 2 . . . Terminals 30 | . 7 . . . 19 . . . . 2 . . 2 Fabricators 8 | . . . . . . . . . . 5 . . 3 Repair Stations . | . . . . . . . . . . . . . . Recycling Units . | . . . . . . . . . . . . . . Scanalyzers . | . . . . . . . . . . . . . . Garrison Access . | . . . . . . . . . . . . . . Terminal Hacks 32 | . 3 . 1 . 2 . . 26 . . . . . Record 7 | . . . 1 . . . . 6 . . . . . Part Schematic 11 | . 1 . . . 1 . . 9 . . . . . Robot Schematic 8 | . . . . . . . . 8 . . . . . Robot Analysis 2 | . 2 . . . . . . . . . . . . Prototype ID Bank 3 | . . . . . . . . 3 . . . . . Terminal Index 1 | . . . . . 1 . . . . . . . . Fabricator Hacks 2 | . . . . . . . . . . 2 . . . Load Schematic 1 | . . . . . . . . . . 1 . . . Build 1 | . . . . . . . . . . 1 . . . Repair Station Hacks . | . . . . . . . . . . . . . . Recycling Unit Hacks . | . . . . . . . . . . . . . . Scanalyzer . | . . . . . . . . . . . . . . Garrison Access Hacks . | . . . . . . . . . . . . . . Unauthorized Hacks 5 | . 2 . . . 3 . . . . . . . . Terminals 5 | . 2 . . . 3 . . . . . . . . Botnet 5 | . 2 . . . 3 . . . . . . . . Fabricators . | . . . . . . . . . . . . . . Repair Stations . | . . . . . . . . . . . . . . Recycling Units . | . . . . . . . . . . . . . . Scanalyzers . | . . . . . . . . . . . . . . Garrison Access . | . . . . . . . . . . . . . . Data Cores Recovered . | . . . . . . . . . . . . . . Used . | . . . . . . . . . . . . . . Hacking Detections 10 | . 1 . . . 4 . . . . 2 . . 3 Full Trace Events . | . . . . . . . . . . . . . . Feedback Events . | . . . . . . . . . . . . . . Feedback Blocked . | . . . . . . . . . . . . . . Robot Schematics Acquired 8 | . . . . . . . . 8 . . . . . Robots Built . | . . . . . . . . . . . . . . Matter . | . . . . . . . . . . . . . . Time . | . . . . . . . . . . . . . . Total Robot Build Rating . | . . . . . . . . . . . . . . Part Schematics Acquired 11 | . 1 . . . 1 . . 9 . . . . . Parts Built 1 | . . . . . . . . . . 1 . . . Matter 318 | . . . . . . . . . . 318 . . . Time 84 | . . . . . . . . . . 84 . . . Total Part Build Rating 6 | . . . . . . . . . . 6 . . . Parts Repaired . | . . . . . . . . . . . . . . Time . | . . . . . . . . . . . . . . Parts Recycled . | . . . . . . . . . . . . . . Recycled Matter . | . . . . . . . . . . . . . . Retrieved Matter . | . . . . . . . . . . . . . . Retrieved Components . | . . . . . . . . . . . . . . Parts Scanalyzed . | . . . . . . . . . . . . . . Part Schematics Acquired . | . . . . . . . . . . . . . . Parts Damaged . | . . . . . . . . . . . . . . Bothacking | -11 -10 -10 -10 -9 -8 -7 -7 -7 -6 -6 -6 -6 -5 ------------ Run | Scr Mat Min Exi Min Mat Fac Low Dat Pro Fac Low Low Fac Used RIF Installer . | . . . . . . . . . . . . . . Robots Hacked . | . . . . . . . . . . . . . . Non-combat . | . . . . . . . . . . . . . . Combat . | . . . . . . . . . . . . . . Robot Hacks Applied . | . . . . . . . . . . . . . . Relay Couplers Released . | . . . . . . . . . . . . . . Robots Rewired 4 | . . . . . . . . . . . 4 . . Allies Hacked . | . . . . . . . . . . . . . . Hacks Repelled . | . . . . . . . . . . . . . . Allies | -11 -10 -10 -10 -9 -8 -7 -7 -7 -6 -6 -6 -6 -5 -------- Run | Scr Mat Min Exi Min Mat Fac Low Dat Pro Fac Low Low Fac Total Allies 8 | . . . . . . . . . 1 . 4 . 3 Largest Group 4 | . . . . . . . . . 1 . 4 . 3 Highest-Rated Group 124 | . . . . . . . . . 94 . 124 . 93 Highest-Rated Ally 94 | . . . . . . . . . 94 . 31 . 31 Total Orders 1 | . . . . . . . . . . . . . 1 EXPLORE 1 | . . . . . . . . . . . . . 1 Ally Attacks 95 | . . . . . . . . . 10 . 57 . 28 Total Damage 1703 | . . . . . . . . . 236 . 1031 . 436 Kills 11 | . . . . . . . . . 3 . 7 . 1 Allies Corrupted . | . . . . . . . . . . . . . . Allies Melted . | . . . . . . . . . . . . . . Intel | -11 -10 -10 -10 -9 -8 -7 -7 -7 -6 -6 -6 -6 -5 ------- Run | Scr Mat Min Exi Min Mat Fac Low Dat Pro Fac Low Low Fac Robot Analysis Total 2 | . 2 . . . . . . . . . . . . Derelict Logs Recovered 6 | . . . . 2 . . . . 2 . 2 . . Drone Launches 3 | . . . . . . . . . . . . . 3 Drone Recoveries . | . . . . . . . . . . . . . . Exploration | -11 -10 -10 -10 -9 -8 -7 -7 -7 -6 -6 -6 -6 -5 ------------- Run | Scr Mat Min Exi Min Mat Fac Low Dat Pro Fac Low Low Fac Turns Passed 5730 | 114 234 111 402 443 419 233 3 119 957 379 1017 411 888 Spaces Moved 3210 | 54 132 61 239 222 217 128 2 79 602 203 642 211 418 Core 4 | 4 . . . . . . . . . . . . . Treads 993 | 50 132 61 239 222 . . . . 18 . 115 156 . Legs 2213 | . . . . . 217 128 2 79 584 203 527 55 418 Wheels . | . . . . . . . . . . . . . . Hover . | . . . . . . . . . . . . . . Flight . | . . . . . . . . . . . . . . Fastest Speed 50 | 50 160 160 160 160 150 150 150 150 120 120 120 120 120 Average Speed 141 | 151 160 160 165 160 150 150 150 150 140 120 128 155 120 Slowest Speed 240 | 160 160 160 180 160 150 150 150 150 210 150 220 240 120 Overloaded Moves . | . . . . . . . . . . . . . . Propulsion Burnouts . | . . . . . . . . . . . . . . Robots Hopped . | . . . . . . . . . . . . . . Cave-ins Triggered . | . . . . . . . . . . . . . . Exploration Rate (%) 32 | 4 26 20 60 50 19 3 1 72 78 8 78 17 17 Regions Visited 13 Branch Regions 8 Pre-discovered Areas 4 | . . . 1 2 . . . 1 . . . . . Known Exits Taken 6 | . . . . . . 1 . 1 1 1 1 1 . Unknown Exits Taken 7 | 1 1 1 1 1 1 . 1 . . . . . . Scrap Searched 8 | . . 1 . 1 . . . . 2 . 3 1 . Spaces Dug 51 | . . . . . . . . . 14 3 16 1 17 Terrain Destroyed 133 | . . . . 9 . 25 . . 53 3 16 10 17 Melee 40 | . . . . . . . . . 3 3 16 1 17 Projectile . | . . . . . . . . . . . . . . AOE 93 | . . . . 9 . 25 . . 50 . . 9 . Actions | -11 -10 -10 -10 -9 -8 -7 -7 -7 -6 -6 -6 -6 -5 --------- Run | Scr Mat Min Exi Min Mat Fac Low Dat Pro Fac Low Low Fac Total 4056 | 71 143 67 245 273 275 164 2 79 673 278 796 276 714 Wait 227 | . . . . 4 5 . . . 3 23 36 5 151 Move 3197 | 53 131 60 238 221 216 127 1 78 601 202 641 210 418 Hop . | . . . . . . . . . . . . . . Pick Up 79 | 4 2 1 . 12 9 11 . . 4 3 9 10 14 Fast Attach 22 | 6 1 . . . . 1 . . 3 3 4 4 . Attach 32 | . . . . 2 5 4 . . 1 3 5 8 4 Detach . | . . . . . . . . . . . . . . Swap 74 | . 1 . 4 4 7 4 1 1 18 3 5 4 22 Drop 90 | . 1 . 3 4 9 10 . . 12 4 16 15 16 Fire 123 | 7 7 4 . 24 23 7 . . 28 . 2 15 6 Melee 154 | . . . . . . . . . 3 37 27 5 82 Ram . | . . . . . . . . . . . . . . Kick 1 | . . . . . 1 . . . . . . . . Crush 5 | 1 . 2 . 2 . . . . . . . . . Escape Stasis . | . . . . . . . . . . . . . . Rewire 51 | . . . . . . . . . . . 51 . . Trap . | . . . . . . . . . . . . . . Miscellaneous 1 | . . . . . . . . . . . . . 1 Route ------- -11/Scrapyard -10/Materials -10/Mines -10/Exiles (discovered 2 exits: [*Min x2]) -9/Mines -8/Materials -7/Factory -7/Lower Caves -7/Data Miner -6/Proximity Caves -6/Factory (discovered 2 exits: Fac / *Low) -6/Lower Caves -6/Lower Caves -5/Factory (discovered 1 exit: [*Fac]) History --------- Turn | Location | Event 3 | -11/Scrapyard | Discovered new exit (range 15) 115 | -11/Scrapyard | Entered Materials 305 | -10/Materials | Discovered new exit (range 10) 311 | -10/Materials | Build established: Mutant 349 | -10/Materials | Entered Mines 355 | -10/Mines | Assembled infested the area 452 | -10/Mines | Deemed a non-threat by the Exiles lab entrance 454 | -10/Mines | Discovered new exit (range 5) 460 | -10/Mines | Entered Exiles 484 | -10/Exiles | Discovered new exit (range 15) 504 | -10/Exiles | Met 8R-AWN 528 | -10/Exiles | Met EX-HEX 623 | -10/Exiles | Met EX-DEC 666 | -10/Exiles | Learned location of Zion (-6) 761 | -10/Exiles | Met EX-BIN 849 | -10/Exiles | Discovered new exit (range 10) 862 | -10/Exiles | Entered Mines 893 | -9/Mines | Met a Derelict bent on vengeance 1124 | -9/Mines | Joined a pair of Derelicts in attacking an 0b10 outpost 1276 | -9/Mines | Discovered new exit (range 9) 1305 | -9/Mines | Entered Materials 1305 | -8/Materials | Evolved 4 slots: Propulsion x2, Utility x2 1621 | -8/Materials | Central database locked down 1683 | -8/Materials | Discovered new exit (range 16) 1724 | -8/Materials | Entered Factory 1724 | -7/Factory | Evolved 2 slots: Propulsion x1, Utility x1 1745 | -7/Factory | Discovered new exit (range 16) 1837 | -7/Factory | Identified exit to Lower Caves 1957 | -7/Factory | Entered Lower Caves 1958 | -7/Lower Caves | A Derelict revealed a hidden shortcut to meet someone special 1960 | -7/Lower Caves | Entered Data Miner 1960 | -7/Data Miner | Discovered new exit (range 6) 1983 | -7/Data Miner | Met Data Miner 2017 | -7/Data Miner | Learned location of Section 7 (-3) 2017 | -7/Data Miner | Acquired the access code to Warlord's prototype stash 2038 | -7/Data Miner | Received God Mode back door access code from Data Miner 2076 | -7/Data Miner | Identified exit to Proximity Caves 2079 | -7/Data Miner | Entered Proximity Caves 2133 | -6/Proximity Caves | Learned 4 Factory zone layouts 2227 | -6/Proximity Caves | Escorted by Enhanced Grunt 2233 | -6/Proximity Caves | Build established: Assassin 2739 | -6/Proximity Caves | Learned location of 1 exit from Factory 2775 | -6/Proximity Caves | Attracted the attention of an 0b10 checkpoint 2849 | -6/Proximity Caves | Destroyed 9 combat bots 3026 | -6/Proximity Caves | Discovered new exit (range 5) 3035 | -6/Proximity Caves | Identified exit to Factory 3036 | -6/Proximity Caves | Entered Factory 3036 | -6/Factory | Evolved 2 slots: Utility x2 3037 | -6/Factory | Identified exit to Factory 3083 | -6/Factory | Build established: Scavenger-Mutant 3342 | -6/Factory | Garrison activated, responded to threat 3356 | -6/Factory | System corruption reached 10% 3383 | -6/Factory | Fabricated Plasma Sword (x1) 3396 | -6/Factory | Discovered new exit (range 12) 3410 | -6/Factory | Identified exit to Lower Caves 3415 | -6/Factory | Entered Lower Caves 3539 | -6/Lower Caves | Encountered a Warlord checkpoint 3733 | -6/Lower Caves | Build established: Scavenger-Assassin 3855 | -6/Lower Caves | Learned Factory stockpile data 3860 | -6/Lower Caves | Attacked by a delusional Derelict stockpiling Unaware 3988 | -6/Lower Caves | Learned location of 1 exit from Proximity Caves 4353 | -6/Lower Caves | Attracted the attention of an 0b10 checkpoint 4428 | -6/Lower Caves | Discovered new exit (range 5) 4431 | -6/Lower Caves | Identified exit to Lower Caves 4432 | -6/Lower Caves | Entered another Lower Caves area 4453 | -6/Lower Caves | Attracted the attention of an 0b10 checkpoint 4836 | -6/Lower Caves | Discovered exit to Factory (range 5) 4843 | -6/Lower Caves | Entered Factory 4843 | -5/Factory | Evolved 2 slots: Utility x2 5120 | -5/Factory | Allied Derelicts emerged from ambush trap array 5609 | -5/Factory | Discovered new exit (range 44) 5731 | -5/Factory | Self-destructed Last Messages --------------- 05723_ Penetrated by Slug. 05724_ K-01 Serf latches onto Y-64 Sentinel. 05724_ K-01 Serf pushes Y-64 Sentinel. 05725_ K-01 Serf collects debris. 05726_ K-01 Serf pushes Y-64 Sentinel. 05726_ Penetrated by Slug. 05726_ K-01 Serf pushes Y-64 Sentinel. 05727_ Imp. Medium Armor Plating destroyed. 05728_ Penetrated by Slug. 05728_ U-05 Engineer lays Concrete. 05729_ K-01 Serf collects debris. 05729_ Flexi-carbon Leg severed. 05729_ Penetrated by Slug. 05730_ K-01 Serf destroyed. 05730_ U-05 Engineer lays Concrete. 05730_ R-10 Processor collects Flexi-carbon Leg. 05730_ U-05 Engineer lays Concrete. 05731_ Carbon-fiber Leg destroyed. 05731_ Penetrated by Slug. 05731_ U-05 Engineer builds a Wall. Map ----- +----------------------------------------------------+ | """ ! ########## ^ | | """ ######?????????# ###+#############+##### | | ????????????????### ### # | | #??????????????????? # #?# # """ """ | | ?????????????????????/ #?# !!! # "G """ | | ?????????????????????# #?# "" "" !!! # """ """ | | ?????????????????????# #?# ""G"" !!! # | | ?????????????????????# ######################### | | ?????????????????????# ? | | ?????????????????????# ? | | ?????????????????????# | | ?????????????????????# | | ?????????????????????# | | ???????????########### ! | | ???????????? % | | ??????????? ######################??? | | ??????????? ????## ##???????????????? | | ??????????? ????# ##????????????????? | | ??????????? ##########??????????????? | | ???????????? w # #??????????????? | | ???????????? # #??????????????? | | ???????????########### u# #??????????????? | | ?????????????????????# !u# #??????????????? | | ?????????????????????# *u# k #??????????????? | | ?????????????????????#R %R #??????????????? | | ?????????????????????# h@ #??????????????? | | ?????????????????????# u ;k #??????????????? | | ?????????????????????# g; g #??????????????? | | ?????????????????????#gYg#####/####??????????????? | | ?????????????????????# R ????? ????????????????? | | ?????????????????????# ?????? * ??????????????? | | ?????????????????????# ??????? ????????????? | | ????????????????????? ???????? ???????????? | | ????????????????????# ?????????"""? #?????????? | | ????????????????????+ ???????????"""?#?????????? | | ????????????????????# ????????????""???????????? | | ????????????????????# ?????????????????????????? | | ????????????????????# ?????????????????????????? | | ????????????????????# ?????????????????????????? | | ????????????????????# ?????????????????????????? | | ????????????????????# ??????????????????????????? | | ????????????????????# ??????????????????????????? | | ????????????????????# ??????????????????????????? | | ????????????????????? ??????????????????????????? | | ?????????????????????????????????????????????????? | | ?????????????????????????????????????????????????? | | ?????????????????????????????????????????????????? | | ?????????????????????????????????????????????????? | | ?????????????????????????????????????????????????? | | ?????????????????????????????????????????????????? | +----------------------------------------------------+ Best States ------------- Heat Dissipation 40 Energy Generation 18 Energy Capacity 875 Matter Stores 300 Matter Capacity 300 Sight Range 20 Robot Scan Range 16 Terrain Scan Density 10 Armor Coverage 600 Utility Shielding 66 Melee Speed Boost 20 Evasion (%) 40 Core Analysis 6 Recoil Reduction 4 Defensive Hacking 14 Item Schematics ----------------- Lrg. Storage Unit | -10/Materials | Hacked Katana | -8/Materials | Hacked Combat Drone Bay | -7/Data Miner | Free Lgt. Regenerative Plating | -7/Data Miner | Free Cmb. Gravmag System | -7/Data Miner | Free Triangulator | -7/Data Miner | Free Exp. Sensor Array | -7/Data Miner | Free Exp. Terrain Scanner | -7/Data Miner | Free Exp. Targeting Computer | -7/Data Miner | Free Plasma Sword | -7/Data Miner | Free Kinetic Spear | -7/Data Miner | Free Robot Schematics ------------------ S-27 Virus | -7/Data Miner | Free G-50 Soldier | -7/Data Miner | Free G-67 Veteran | -7/Data Miner | Free X-72 Disruptor | -7/Data Miner | Free H-66 Slayer | -7/Data Miner | Free P-70 Sage | -7/Data Miner | Free I-36 Angel | -7/Data Miner | Free I-47 Archangel | -7/Data Miner | Free Fabricated ------------ Plasma Sword | x1 | -6/Factory Alien Tech Used ----------------- None Achievements -------------- None Challenges ------------ None Game ------ Seed NeutronLongswordKatana Manual? 0 Play Time 00:34:07 Cumulative 477.3 hours Start 2020.04.19 @ 15:34:24 End 2020.04.19 @ 16:07:50 Sessions 1 Manual Loads 0 Difficulty Rogue Special Mode None Game No. 811 Rogue 811 Adventurer 0 Explorer 0 Win Type - Total 40 Types 28/0/5/5/2/0/0 Lore% 93 Gallery% 93 Achievement% 80 Wizard Run 0 Options --------- ASCII 1 Keyboard 0 Movement Numpad Keybinds 0 Fullscreen 0 Font 14/SmallcapsGlow Map View 76x50 Tactical HUD 1 Map Filters NONE Filters NONE Steam 1 RUN: eb2cc771-eec5-4161-9317-8c0e1fc2dc36